[Event "Titled Tuesday Blitz July 11 Early 2023"]
[White "Gordievsky, Dmitry"]
[Black "Gontcharov, Vladislav"]
[WhiteFideId "24112798"]
[BlackFideId "4123492"]
[WhiteElo "2911"]
[BlackElo "2575"]
[Result "1-0"]
[Round "2"]
[TimeControl "180+2"]
[Date "2023.07.11"]
[WhiteClock "0:00:07"]
[BlackClock "0:00:00"]
[Board "21"]

1. Nf3 {[%clk 0:03:00]}  Nf6 {[%clk 0:02:59]} 2. c4 {[%clk 0:03:00]}  c5 {[%clk 0:02:59]} 3. Nc3 {[%clk 0:03:00]}  Nc6 {[%clk 0:02:56]} 4. g3 {[%clk 0:02:58]}  d6 {[%clk 0:02:51]} 5. Bg2 {[%clk 0:02:56]}  g6 {[%clk 0:02:51]} 6. d4 {[%clk 0:02:56]}  cxd4 {[%clk 0:02:51]} 7. Nxd4 {[%clk 0:02:57]}  Bd7 {[%clk 0:02:51]} 8. O-O {[%clk 0:02:56]}  Bg7 {[%clk 0:02:51]} 9. e3 {[%clk 0:02:55]}  O-O {[%clk 0:02:46]} 10. b3 {[%clk 0:02:56]}  Nxd4 {[%clk 0:02:39]} 11. exd4 {[%clk 0:02:56]}  Bc6 {[%clk 0:02:40]} 12. d5 {[%clk 0:02:40]}  Bd7 {[%clk 0:02:38]} 13. Bd2 {[%clk 0:02:27]}  Bf5 {[%clk 0:02:22]} 14. Re1 {[%clk 0:02:24]}  Qd7 {[%clk 0:02:18]} 15. Qc1 {[%clk 0:02:19]}  Rfe8 {[%clk 0:02:17]} 16. Bh6 {[%clk 0:02:19]}  Rac8 {[%clk 0:02:10]} 17. Bxg7 {[%clk 0:02:18]}  Kxg7 {[%clk 0:02:10]} 18. Qe3 {[%clk 0:02:18]}  a6 {[%clk 0:01:47]} 19. a4 {[%clk 0:02:16]}  Qc7 {[%clk 0:01:43]} 20. a5 {[%clk 0:02:16]}  Qc5 {[%clk 0:01:30]} 21. Na4 {[%clk 0:02:09]}  Qxe3 {[%clk 0:01:29]} 22. Rxe3 {[%clk 0:02:10]}  Nd7 {[%clk 0:01:19]} 23. Rae1 {[%clk 0:01:57]}  Kf8 {[%clk 0:01:18]} 24. h3 {[%clk 0:01:51]}  g5 {[%clk 0:01:11]} 25. Bf1 {[%clk 0:01:45]}  Nc5 {[%clk 0:00:46]} 26. Nb6 {[%clk 0:01:45]}  Rcd8 {[%clk 0:00:44]} 27. b4 {[%clk 0:01:39]}  Nd7 {[%clk 0:00:43]} 28. Na4 {[%clk 0:01:23]}  Rc8 {[%clk 0:00:42]} 29. Rc1 {[%clk 0:01:04]}  Red8 {[%clk 0:00:35]} 30. c5 {[%clk 0:01:00]}  dxc5 {[%clk 0:00:34]} 31. bxc5 {[%clk 0:01:01]}  Nf6 {[%clk 0:00:33]} 32. Nb6 {[%clk 0:01:01]}  Rc7 {[%clk 0:00:31]} 33. Bg2 {[%clk 0:00:59]}  Nd7 {[%clk 0:00:19]} 34. Rec3 {[%clk 0:00:51]}  Nxb6 {[%clk 0:00:18]} 35. axb6 {[%clk 0:00:49]}  Rcc8 {[%clk 0:00:17]} 36. g4 {[%clk 0:00:41]}  Bd7 {[%clk 0:00:11]} 37. c6 {[%clk 0:00:40]}  Be8 {[%clk 0:00:11]} 38. cxb7 {[%clk 0:00:37]}  Rb8 {[%clk 0:00:11]} 39. d6 {[%clk 0:00:28]}  exd6 {[%clk 0:00:06]} 40. Rc8 {[%clk 0:00:28]}  Bd7 {[%clk 0:00:01]} 41. Rxd8+ {[%clk 0:00:07]}  Rxd8 {[%clk 0:00:00]} 42. Rc8 {[%clk 0:00:07]} 1-0


[Site "https://www.chess.com"]

[Event "Titled Tuesday Blitz July 11 Early 2023"]
[White "Donchenko, Alexander"]
[Black "Soham Kamotra"]
[WhiteFideId "24603295"]
[BlackFideId "46647490"]
[WhiteElo "2878"]
[BlackElo "2570"]
[Result "0-1"]
[Round "2"]
[TimeControl "180+2"]
[Date "2023.07.11"]
[WhiteClock "0:00:07"]
[BlackClock "0:00:15"]
[Board "26"]

1. Nf3 {[%clk 0:03:00]}  d5 {[%clk 0:02:59]} 2. g3 {[%clk 0:03:01]}  Nd7 {[%clk 0:02:58]} 3. d4 {[%clk 0:03:00]}  Nb6 {[%clk 0:02:58]} 4. Bg2 {[%clk 0:03:00]}  Bf5 {[%clk 0:02:58]} 5. O-O {[%clk 0:03:00]}  e6 {[%clk 0:02:58]} 6. b3 {[%clk 0:03:00]}  Nf6 {[%clk 0:02:58]} 7. c4 {[%clk 0:03:01]}  Be7 {[%clk 0:02:48]} 8. a4 {[%clk 0:03:00]}  a5 {[%clk 0:02:43]} 9. Ba3 {[%clk 0:03:00]}  O-O {[%clk 0:02:42]} 10. Qc1 {[%clk 0:02:58]}  Bxb1 {[%clk 0:02:36]} 11. Rxb1 {[%clk 0:02:53]}  c6 {[%clk 0:02:30]} 12. Bb2 {[%clk 0:02:46]}  Nbd7 {[%clk 0:02:20]} 13. Rd1 {[%clk 0:02:45]}  Nb8 {[%clk 0:02:18]} 14. Nd2 {[%clk 0:02:39]}  Bb4 {[%clk 0:02:14]} 15. Qc2 {[%clk 0:02:39]}  Na6 {[%clk 0:02:11]} 16. Rbc1 {[%clk 0:02:39]}  Qe7 {[%clk 0:02:07]} 17. h4 {[%clk 0:02:34]}  Rfd8 {[%clk 0:02:06]} 18. e3 {[%clk 0:02:34]}  h6 {[%clk 0:02:06]} 19. Nf3 {[%clk 0:02:33]}  Bd6 {[%clk 0:02:00]} 20. Ne5 {[%clk 0:02:32]}  Bxe5 {[%clk 0:01:58]} 21. dxe5 {[%clk 0:02:32]}  Nd7 {[%clk 0:01:58]} 22. cxd5 {[%clk 0:02:12]}  cxd5 {[%clk 0:01:45]} 23. Bd4 {[%clk 0:02:07]}  Rdc8 {[%clk 0:01:29]} 24. Qxc8+ {[%clk 0:02:03]}  Rxc8 {[%clk 0:01:30]} 25. Rxc8+ {[%clk 0:02:03]}  Kh7 {[%clk 0:01:30]} 26. Bf1 {[%clk 0:02:04]}  Nb4 {[%clk 0:01:15]} 27. Rdc1 {[%clk 0:01:58]}  Nc6 {[%clk 0:01:13]} 28. Bd3+ {[%clk 0:01:49]}  g6 {[%clk 0:01:12]} 29. h5 {[%clk 0:01:49]}  Kg7 {[%clk 0:01:06]} 30. hxg6 {[%clk 0:01:36]}  Qa3 {[%clk 0:01:00]} 31. Ra1 {[%clk 0:01:10]}  Qxb3 {[%clk 0:01:00]} 32. Bb5 {[%clk 0:01:08]}  Nxd4 {[%clk 0:00:40]} 33. exd4 {[%clk 0:01:07]}  Nf8 {[%clk 0:00:37]} 34. gxf7 {[%clk 0:01:04]}  h5 {[%clk 0:00:35]} 35. Re1 {[%clk 0:01:00]}  Qb2 {[%clk 0:00:31]} 36. Rd1 {[%clk 0:00:59]}  Qb3 {[%clk 0:00:27]} 37. Rd3 {[%clk 0:00:59]}  Qb1+ {[%clk 0:00:26]} 38. Kg2 {[%clk 0:01:00]}  Qe1 {[%clk 0:00:26]} 39. Rb8 {[%clk 0:00:45]}  b6 {[%clk 0:00:25]} 40. Re3 {[%clk 0:00:37]}  Qa1 {[%clk 0:00:19]} 41. Rd3 {[%clk 0:00:16]}  Qe1 {[%clk 0:00:19]} 42. Rc8 {[%clk 0:00:08]}  Qe4+ {[%clk 0:00:18]} 43. Kg1 {[%clk 0:00:08]}  Qe1+ {[%clk 0:00:18]} 44. Kg2 {[%clk 0:00:09]}  Qe4+ {[%clk 0:00:18]} 45. Kh2 {[%clk 0:00:09]}  Qe2 {[%clk 0:00:17]} 46. Rc1 {[%clk 0:00:07]}  Qxf2+ {[%clk 0:00:17]} 47. Kh3 {[%clk 0:00:07]}  Qf5+ {[%clk 0:00:17]} 48. Kg2 {[%clk 0:00:07]}  Qe4+ {[%clk 0:00:17]} 49. Kf2 {[%clk 0:00:08]}  h4 {[%clk 0:00:16]} 50. gxh4 {[%clk 0:00:08]}  Qf4+ {[%clk 0:00:17]} 51. Kg2 {[%clk 0:00:08]}  Qxc1 {[%clk 0:00:17]} 52. Rg3+ {[%clk 0:00:08]}  Kxf7 {[%clk 0:00:17]} 53. h5 {[%clk 0:00:09]}  Qd2+ {[%clk 0:00:16]} 54. Kh3 {[%clk 0:00:09]}  Qd1 {[%clk 0:00:16]} 55. Kh4 {[%clk 0:00:09]}  Qh1+ {[%clk 0:00:16]} 56. Kg4 {[%clk 0:00:09]}  Qd1+ {[%clk 0:00:16]} 57. Kh4 {[%clk 0:00:09]}  Qe1 {[%clk 0:00:16]} 58. Kg4 {[%clk 0:00:09]}  Qe4+ {[%clk 0:00:17]} 59. Kh3 {[%clk 0:00:09]}  Ke7 {[%clk 0:00:17]} 60. Bd3 {[%clk 0:00:08]}  Qh1+ {[%clk 0:00:16]} 61. Kg4 {[%clk 0:00:08]}  Nh7 {[%clk 0:00:16]} 62. Bxh7 {[%clk 0:00:07]}  Qd1+ {[%clk 0:00:15]} 63. Kh4 {[%clk 0:00:07]}  Qxd4+ {[%clk 0:00:15]} 64. Rg4 {[%clk 0:00:07]}  Qxe5 {[%clk 0:00:15]} 65. Bg6 {[%clk 0:00:07]}  Kf6 {[%clk 0:00:15]} 66. h6 {[%clk 0:00:07]}  Qh2# {[%clk 0:00:15]} 0-1


[Site "https://www.chess.com"]

[Event "Titled Tuesday Blitz July 11 Early 2023"]
[White "Grandelius, Nils"]
[Black "Nozdrachev, Leonid"]
[WhiteFideId "1710400"]
[BlackFideId "24113433"]
[WhiteElo "2872"]
[BlackElo "2566"]
[Result "1-0"]
[Round "2"]
[TimeControl "180+2"]
[Date "2023.07.11"]
[WhiteClock "0:00:05"]
[BlackClock "0:00:00"]
[Board "28"]

1. d4 {[%clk 0:03:00]}  Nf6 {[%clk 0:02:57]} 2. c4 {[%clk 0:03:00]}  e6 {[%clk 0:02:57]} 3. Bf4 {[%clk 0:03:00]}  c5 {[%clk 0:02:56]} 4. d5 {[%clk 0:02:58]}  exd5 {[%clk 0:02:57]} 5. cxd5 {[%clk 0:02:58]}  d6 {[%clk 0:02:57]} 6. Nc3 {[%clk 0:02:57]}  g6 {[%clk 0:02:57]} 7. e4 {[%clk 0:02:54]}  Bg7 {[%clk 0:02:57]} 8. Bb5+ {[%clk 0:02:47]}  Bd7 {[%clk 0:02:48]} 9. Bd3 {[%clk 0:02:46]}  O-O {[%clk 0:02:47]} 10. Bxd6 {[%clk 0:02:42]}  Bg4 {[%clk 0:02:43]} 11. Bxf8 {[%clk 0:02:30]}  Bxd1 {[%clk 0:02:41]} 12. Bxg7 {[%clk 0:02:30]}  Kxg7 {[%clk 0:02:38]} 13. Rxd1 {[%clk 0:02:30]}  Nbd7 {[%clk 0:02:23]} 14. Nf3 {[%clk 0:02:30]}  Ng4 {[%clk 0:02:21]} 15. O-O {[%clk 0:02:29]}  Nde5 {[%clk 0:02:19]} 16. Nxe5 {[%clk 0:02:29]}  Nxe5 {[%clk 0:02:20]} 17. Be2 {[%clk 0:02:30]}  c4 {[%clk 0:02:18]} 18. Rd2 {[%clk 0:01:58]}  g5 {[%clk 0:02:03]} 19. Rc1 {[%clk 0:01:44]}  a6 {[%clk 0:01:57]} 20. Nd1 {[%clk 0:01:41]}  Qa5 {[%clk 0:01:51]} 21. Nc3 {[%clk 0:01:37]}  b5 {[%clk 0:01:50]} 22. a3 {[%clk 0:01:37]}  Rd8 {[%clk 0:01:43]} 23. h3 {[%clk 0:01:17]}  Qb6 {[%clk 0:01:40]} 24. Nd1 {[%clk 0:01:17]}  Qa5 {[%clk 0:01:38]} 25. Rcc2 {[%clk 0:01:17]}  Ng6 {[%clk 0:01:18]} 26. Ne3 {[%clk 0:01:14]}  Nf4 {[%clk 0:01:18]} 27. Bf1 {[%clk 0:01:13]}  h5 {[%clk 0:01:14]} 28. g3 {[%clk 0:01:10]}  Ng6 {[%clk 0:01:14]} 29. d6 {[%clk 0:00:58]}  h4 {[%clk 0:01:11]} 30. Nf5+ {[%clk 0:00:56]}  Kh7 {[%clk 0:01:10]} 31. Kg2 {[%clk 0:00:52]}  hxg3 {[%clk 0:01:06]} 32. fxg3 {[%clk 0:00:53]}  Qb6 {[%clk 0:01:05]} 33. Be2 {[%clk 0:00:50]}  Ne5 {[%clk 0:01:02]} 34. Rd5 {[%clk 0:00:46]}  f6 {[%clk 0:01:02]} 35. Rcd2 {[%clk 0:00:38]}  Rd7 {[%clk 0:00:57]} 36. Rd1 {[%clk 0:00:33]}  Qc6 {[%clk 0:00:54]} 37. h4 {[%clk 0:00:28]}  c3 {[%clk 0:00:52]} 38. bxc3 {[%clk 0:00:26]}  Qxc3 {[%clk 0:00:53]} 39. hxg5 {[%clk 0:00:26]}  Qc2 {[%clk 0:00:52]} 40. Rh1+ {[%clk 0:00:15]}  Kg6 {[%clk 0:00:45]} 41. Ne7+ {[%clk 0:00:14]}  Kg7 {[%clk 0:00:15]} 42. gxf6+ {[%clk 0:00:14]}  Kxf6 {[%clk 0:00:15]} 43. Rf1+ {[%clk 0:00:13]}  Kg7 {[%clk 0:00:13]} 44. Nf5+ {[%clk 0:00:11]}  Kg8 {[%clk 0:00:09]} 45. Rxe5 {[%clk 0:00:10]}  Qxe2+ {[%clk 0:00:09]} 46. Rf2 {[%clk 0:00:11]}  Qe1 {[%clk 0:00:07]} 47. Re7 {[%clk 0:00:08]}  Rxe7 {[%clk 0:00:04]} 48. Nxe7+ {[%clk 0:00:09]}  Kg7 {[%clk 0:00:04]} 49. Rf4 {[%clk 0:00:09]}  Qe2+ {[%clk 0:00:03]} 50. Kh3 {[%clk 0:00:10]}  Qh5+ {[%clk 0:00:04]} 51. Rh4 {[%clk 0:00:11]}  Qe2 {[%clk 0:00:04]} 52. d7 {[%clk 0:00:07]}  Qf1+ {[%clk 0:00:04]} 53. Kg4 {[%clk 0:00:08]}  Qd1+ {[%clk 0:00:04]} 54. Kf4 {[%clk 0:00:07]}  Qxd7 {[%clk 0:00:05]} 55. Nf5+ {[%clk 0:00:08]}  Kg8 {[%clk 0:00:04]} 56. Rh6 {[%clk 0:00:07]}  Qd1 {[%clk 0:00:02]} 57. Rxa6 {[%clk 0:00:06]}  Qc1+ {[%clk 0:00:03]} 58. Kg4 {[%clk 0:00:04]}  Kf8 {[%clk 0:00:03]} 59. Rf6+ {[%clk 0:00:03]}  Ke8 {[%clk 0:00:03]} 60. Re6+ {[%clk 0:00:03]}  Kd7 {[%clk 0:00:03]} 61. Rd6+ {[%clk 0:00:03]}  Kc7 {[%clk 0:00:03]} 62. Rd4 {[%clk 0:00:03]}  Qb1 {[%clk 0:00:04]} 63. Kf4 {[%clk 0:00:02]}  Qb2 {[%clk 0:00:04]} 64. Rd5 {[%clk 0:00:02]}  Kc6 {[%clk 0:00:03]} 65. Nd4+ {[%clk 0:00:03]}  Kc7 {[%clk 0:00:03]} 66. Nxb5+ {[%clk 0:00:03]}  Kc8 {[%clk 0:00:02]} 67. Nd4 {[%clk 0:00:04]}  Qc1+ {[%clk 0:00:02]} 68. Ke5 {[%clk 0:00:04]}  Qg5+ {[%clk 0:00:01]} 69. Nf5 {[%clk 0:00:05]}  Qg4 {[%clk 0:00:01]} 70. a4 {[%clk 0:00:05]}  Qe2 {[%clk 0:00:00]} 71. a5 {[%clk 0:00:05]} 1-0


[Site "https://www.chess.com"]

[Event "Titled Tuesday Blitz July 11 Early 2023"]
[White "Galchenko, Matvey"]
[Black "Domingo Nunez, Alejandro"]
[WhiteFideId "24175480"]
[BlackFideId "22245561"]
[WhiteElo "2864"]
[BlackElo "2565"]
[Result "1-0"]
[Round "2"]
[TimeControl "180+2"]
[Date "2023.07.11"]
[WhiteClock "0:02:07"]
[BlackClock "0:01:44"]
[Board "30"]

1. d4 {[%clk 0:02:58]}  g6 {[%clk 0:02:14]} 2. c4 {[%clk 0:02:53]}  Bg7 {[%clk 0:02:14]} 3. Nf3 {[%clk 0:02:54]}  d6 {[%clk 0:02:15]} 4. Nc3 {[%clk 0:02:54]}  Nf6 {[%clk 0:02:15]} 5. Bf4 {[%clk 0:02:54]}  O-O {[%clk 0:02:15]} 6. e3 {[%clk 0:02:55]}  b6 {[%clk 0:02:15]} 7. Be2 {[%clk 0:02:51]}  Bb7 {[%clk 0:02:16]} 8. O-O {[%clk 0:02:51]}  Nbd7 {[%clk 0:02:16]} 9. Qc2 {[%clk 0:02:50]}  Qe8 {[%clk 0:02:15]} 10. Nb5 {[%clk 0:02:36]}  Qd8 {[%clk 0:02:13]} 11. Rad1 {[%clk 0:02:37]}  Ne4 {[%clk 0:02:12]} 12. Rfe1 {[%clk 0:02:34]}  a6 {[%clk 0:01:51]} 13. Nc3 {[%clk 0:02:34]}  Nxc3 {[%clk 0:01:50]} 14. Qxc3 {[%clk 0:02:34]}  Qe8 {[%clk 0:01:47]} 15. Qc2 {[%clk 0:02:24]}  e5 {[%clk 0:01:47]} 16. Bg3 {[%clk 0:02:24]}  f5 {[%clk 0:01:47]} 17. c5 {[%clk 0:02:10]}  bxc5 {[%clk 0:01:46]} 18. Qb3+ {[%clk 0:02:10]}  Qf7 {[%clk 0:01:46]} 19. Qxb7 {[%clk 0:02:09]}  Nb6 {[%clk 0:01:44]} 20. dxc5 {[%clk 0:02:07]} 1-0


[Site "https://www.chess.com"]

[Event "Titled Tuesday Blitz July 11 Early 2023"]
[White "Timofeev, Artyom"]
[Black "Arencibia Monduy, Antonio"]
[WhiteFideId "4140419"]
[BlackFideId "3507939"]
[WhiteElo "2848"]
[BlackElo "2565"]
[Result "1/2-1/2"]
[Round "2"]
[TimeControl "180+2"]
[Date "2023.07.11"]
[WhiteClock "0:00:04"]
[BlackClock "0:00:04"]
[Board "32"]

1. d4 {[%clk 0:03:00]}  e6 {[%clk 0:02:58]} 2. e4 {[%clk 0:03:00]}  d5 {[%clk 0:02:57]} 3. Nd2 {[%clk 0:02:57]}  dxe4 {[%clk 0:02:57]} 4. Nxe4 {[%clk 0:02:57]}  Nd7 {[%clk 0:02:58]} 5. Nf3 {[%clk 0:02:56]}  Ngf6 {[%clk 0:02:58]} 6. Nxf6+ {[%clk 0:02:56]}  Nxf6 {[%clk 0:02:58]} 7. Bg5 {[%clk 0:02:56]}  Be7 {[%clk 0:02:58]} 8. Bd3 {[%clk 0:02:54]}  O-O {[%clk 0:02:58]} 9. Qe2 {[%clk 0:02:54]}  c5 {[%clk 0:02:56]} 10. O-O-O {[%clk 0:02:51]}  Qc7 {[%clk 0:02:50]} 11. Kb1 {[%clk 0:02:50]}  Bd7 {[%clk 0:02:50]} 12. Ne5 {[%clk 0:02:43]}  Bc6 {[%clk 0:02:32]} 13. dxc5 {[%clk 0:02:40]}  Rad8 {[%clk 0:02:25]} 14. Rhe1 {[%clk 0:02:38]}  Nd5 {[%clk 0:01:40]} 15. Bxe7 {[%clk 0:02:15]}  Qxe7 {[%clk 0:01:38]} 16. Nxc6 {[%clk 0:02:15]}  bxc6 {[%clk 0:01:38]} 17. Qe4 {[%clk 0:02:15]}  g6 {[%clk 0:01:09]} 18. Qd4 {[%clk 0:02:04]}  Rfe8 {[%clk 0:00:54]} 19. a3 {[%clk 0:01:53]}  e5 {[%clk 0:00:50]} 20. Qc4 {[%clk 0:01:53]}  f5 {[%clk 0:00:48]} 21. f3 {[%clk 0:01:49]}  Kh8 {[%clk 0:00:40]} 22. g4 {[%clk 0:01:48]}  f4 {[%clk 0:00:34]} 23. Rd2 {[%clk 0:01:32]}  Ne3 {[%clk 0:00:33]} 24. Qc3 {[%clk 0:01:32]}  Rd5 {[%clk 0:00:29]} 25. b4 {[%clk 0:01:27]}  Red8 {[%clk 0:00:28]} 26. Rde2 {[%clk 0:01:27]}  a5 {[%clk 0:00:27]} 27. Rxe3 {[%clk 0:01:25]}  fxe3 {[%clk 0:00:28]} 28. Rxe3 {[%clk 0:01:25]}  axb4 {[%clk 0:00:29]} 29. axb4 {[%clk 0:01:25]}  Qf6 {[%clk 0:00:24]} 30. Kb2 {[%clk 0:01:21]}  Rd4 {[%clk 0:00:24]} 31. Be4 {[%clk 0:01:19]}  Rb8 {[%clk 0:00:23]} 32. Qe1 {[%clk 0:00:54]}  Rdxb4+ {[%clk 0:00:22]} 33. Rb3 {[%clk 0:00:54]}  Rxb3+ {[%clk 0:00:20]} 34. cxb3 {[%clk 0:00:54]}  Qe6 {[%clk 0:00:19]} 35. Qc3 {[%clk 0:00:54]}  Qf6 {[%clk 0:00:14]} 36. h4 {[%clk 0:00:51]}  h6 {[%clk 0:00:13]} 37. b4 {[%clk 0:00:46]}  Rd8 {[%clk 0:00:12]} 38. g5 {[%clk 0:00:37]}  hxg5 {[%clk 0:00:11]} 39. hxg5 {[%clk 0:00:37]}  Qxg5 {[%clk 0:00:11]} 40. Bxc6 {[%clk 0:00:37]}  Qg2+ {[%clk 0:00:11]} 41. Kb3 {[%clk 0:00:37]}  Qg5 {[%clk 0:00:11]} 42. Be4 {[%clk 0:00:37]}  Qf6 {[%clk 0:00:09]} 43. Qc4 {[%clk 0:00:36]}  Rd4 {[%clk 0:00:09]} 44. Qb5 {[%clk 0:00:32]}  Qe6+ {[%clk 0:00:09]} 45. Ka3 {[%clk 0:00:29]}  Rd2 {[%clk 0:00:08]} 46. Qb8+ {[%clk 0:00:16]}  Kg7 {[%clk 0:00:08]} 47. Bb1 {[%clk 0:00:09]}  Qa6+ {[%clk 0:00:06]} 48. Kb3 {[%clk 0:00:08]}  Qe6+ {[%clk 0:00:01]} 49. Kc3 {[%clk 0:00:08]}  Rd7 {[%clk 0:00:02]} 50. Be4 {[%clk 0:00:08]}  Qf6 {[%clk 0:00:01]} 51. Qb5 {[%clk 0:00:07]}  Re7 {[%clk 0:00:01]} 52. Qc4 {[%clk 0:00:07]}  Qf8 {[%clk 0:00:01]} 53. c6 {[%clk 0:00:07]}  Qd8 {[%clk 0:00:01]} 54. b5 {[%clk 0:00:07]}  Ra7 {[%clk 0:00:02]} 55. Qb4 {[%clk 0:00:07]}  Qb6 {[%clk 0:00:01]} 56. Kb3 {[%clk 0:00:04]}  Qe3+ {[%clk 0:00:02]} 57. Kc4 {[%clk 0:00:03]}  Qd4+ {[%clk 0:00:01]} 58. Kb3 {[%clk 0:00:04]}  Qe3+ {[%clk 0:00:02]} 59. Kc4 {[%clk 0:00:04]}  Qd4+ {[%clk 0:00:03]} 60. Kb3 {[%clk 0:00:04]}  Qe3+ {[%clk 0:00:04]} 1/2-1/2


[Site "https://www.chess.com"]

[Event "Titled Tuesday Blitz July 11 Early 2023"]
[White "Bruedigam, Martin"]
[Black "Maksimovic, Bojan"]
[WhiteFideId "24608033"]
[BlackFideId "14408120"]
[WhiteElo "2562"]
[BlackElo "2846"]
[Result "0-1"]
[Round "2"]
[TimeControl "180+2"]
[Date "2023.07.11"]
[WhiteClock "0:00:00"]
[BlackClock "0:00:35"]
[Board "33"]

1. c4 {[%clk 0:03:00]}  Nf6 {[%clk 0:02:59]} 2. g3 {[%clk 0:02:56]}  g6 {[%clk 0:03:00]} 3. Bg2 {[%clk 0:02:55]}  Bg7 {[%clk 0:03:00]} 4. e4 {[%clk 0:02:54]}  d6 {[%clk 0:03:00]} 5. Ne2 {[%clk 0:02:50]}  O-O {[%clk 0:02:58]} 6. O-O {[%clk 0:02:50]}  e5 {[%clk 0:02:59]} 7. d3 {[%clk 0:02:49]}  Nbd7 {[%clk 0:02:59]} 8. f4 {[%clk 0:02:47]}  c6 {[%clk 0:02:57]} 9. Nbc3 {[%clk 0:02:46]}  a6 {[%clk 0:02:57]} 10. h3 {[%clk 0:02:45]}  b5 {[%clk 0:02:57]} 11. b3 {[%clk 0:02:45]}  Nc5 {[%clk 0:02:49]} 12. Rb1 {[%clk 0:02:35]}  b4 {[%clk 0:02:48]} 13. Na4 {[%clk 0:02:35]}  Nxa4 {[%clk 0:02:48]} 14. bxa4 {[%clk 0:02:35]}  c5 {[%clk 0:02:41]} 15. f5 {[%clk 0:02:27]}  h5 {[%clk 0:02:41]} 16. Bg5 {[%clk 0:02:21]}  Bd7 {[%clk 0:02:38]} 17. g4 {[%clk 0:02:20]}  Qe8 {[%clk 0:02:28]} 18. Ng3 {[%clk 0:02:15]}  hxg4 {[%clk 0:02:25]} 19. hxg4 {[%clk 0:02:12]}  Nh7 {[%clk 0:02:23]} 20. Be3 {[%clk 0:02:02]}  Bf6 {[%clk 0:02:18]} 21. Qd2 {[%clk 0:01:58]}  Qe7 {[%clk 0:02:18]} 22. a5 {[%clk 0:01:36]}  Bg5 {[%clk 0:02:12]} 23. f6 {[%clk 0:01:07]}  Bxf6 {[%clk 0:02:08]} 24. Nf5 {[%clk 0:00:16]}  gxf5 {[%clk 0:02:03]} 25. exf5 {[%clk 0:00:16]}  Bg5 {[%clk 0:02:00]} 26. Bxa8 {[%clk 0:00:15]}  Rxa8 {[%clk 0:02:00]} 27. Kf2 {[%clk 0:00:15]}  Bxe3+ {[%clk 0:01:57]} 28. Qxe3 {[%clk 0:00:15]}  Qg5 {[%clk 0:01:57]} 29. Rh1 {[%clk 0:00:13]}  Qxe3+ {[%clk 0:01:52]} 30. Kxe3 {[%clk 0:00:14]}  Kg7 {[%clk 0:01:44]} 31. Rh4 {[%clk 0:00:13]}  Ng5 {[%clk 0:01:24]} 32. Rbh1 {[%clk 0:00:13]}  f6 {[%clk 0:01:17]} 33. Rh6 {[%clk 0:00:13]}  Rg8 {[%clk 0:01:13]} 34. Rg6+ {[%clk 0:00:12]}  Kf7 {[%clk 0:01:14]} 35. Rxg8 {[%clk 0:00:09]}  Kxg8 {[%clk 0:01:15]} 36. a3 {[%clk 0:00:08]}  b3 {[%clk 0:01:02]} 37. Rh2 {[%clk 0:00:08]}  Ba4 {[%clk 0:00:57]} 38. Rb2 {[%clk 0:00:09]}  Kf7 {[%clk 0:00:55]} 39. Rh2 {[%clk 0:00:08]}  Kg7 {[%clk 0:00:44]} 40. Rh1 {[%clk 0:00:08]}  d5 {[%clk 0:00:37]} 41. cxd5 {[%clk 0:00:08]}  Nf7 {[%clk 0:00:37]} 42. Kd2 {[%clk 0:00:06]}  Nd6 {[%clk 0:00:34]} 43. Kc3 {[%clk 0:00:06]}  e4 {[%clk 0:00:34]} 44. dxe4 {[%clk 0:00:05]}  Nxe4+ {[%clk 0:00:35]} 45. Kb2 {[%clk 0:00:04]}  c4 {[%clk 0:00:35]} 46. Rc1 {[%clk 0:00:04]}  c3+ {[%clk 0:00:35]} 47. Rxc3 {[%clk 0:00:05]}  Nxc3 {[%clk 0:00:36]} 48. Kxc3 {[%clk 0:00:06]}  Kh6 {[%clk 0:00:35]} 49. d6 {[%clk 0:00:00]}  Kg5 {[%clk 0:00:35]} 0-1


[Site "https://www.chess.com"]